fUST/lending_fUST_20240701
["ID","MTS","AMOUNT","RATE_DAILY","PERIOD"]
[330775288,1719772243556,-500.0,0.00015057,2]
[330775289,1719772243566,-500.97532239,0.00015057,2]
[330775290,1719772243575,-721.6,0.00015057,2]
[330775291,1719772243585,-500.0,0.00015057,2]
[330775292,1719772243594,-513.4056479,0.00015057,2]
[330775293,1719772243604,-500.0,0.00015057,2]
[330775294,1719772243614,-500.0,0.00015057,2]
[330775296,1719772243624,-500.0,0.00015057,2]
[330775297,1719772243633,-501.05769785,0.00015057,2]
[330775298,1719772243643,-500.0,0.00015057,2]
[330775299,1719772243652,-500.0,0.00015057,2]
[330775300,1719772243662,-690.84,0.00015057,2]
[330775301,1719772243671,-1217.51,0.00015057,2]
[330775302,1719772243681,-500.0,0.00015057,2]
[330775303,1719772243690,-500.0,0.00015057,2]
[330775304,1719772243699,-502.16022671,0.00015057,2]
[330775305,1719772243708,-500.0,0.00015057,2]
[330775306,1719772243718,-500.0,0.00015057,2]
[330775307,1719772243728,-500.0,0.00015057,2]
[330775308,1719772243737,-500.0,0.00015057,2]
[330775309,1719772243746,-16985.32,0.00015057,2]
[330775310,1719772243756,-570.43,0.00015057,2]
[330775311,1719772243767,-500.0,0.00015057,2]
[330775312,1719772243777,-615.34,0.00015057,2]
[330775313,1719772243786,-2261.05,0.00015057,2]
[330775314,1719772243795,-563.05,0.00015057,2]
[330775315,1719772243804,-9532.66,0.00015057,2]
[330775316,1719772243813,-292.863491,0.00015058,2]
[330775317,1719772243823,-1963.17,0.00015058,2]
[330775318,1719772243833,-500.0,0.00015058,2]
[330775319,1719772243843,-1392.49,0.00015058,2]
[330775320,1719772243853,-1434.22,0.00015058,2]
[330775321,1719772243864,-15870.27,0.00015058,2]
[330775322,1719772243874,-500.0,0.0001506,2]
[330775323,1719772243883,-500.0,0.0001506,2]
[330775324,1719772243893,-623.07,0.0001506,2]
[330775325,1719772243903,-500.0,0.00015061,2]
[330775326,1719772243913,-500.0,0.00015062,2]
[330775327,1719772243922,-500.0,0.00015069,2]
[330775328,1719772243931,-153.0,0.00015385,2]
[330775329,1719772243941,-153.0,0.00015385,2]
[330775330,1719772243950,-153.0,0.00015385,2]
[330775331,1719772243959,-153.0,0.00015385,2]
[330775332,1719772243971,-153.0,0.00015385,2]
[330775333,1719772243982,-153.0,0.00015385,2]
[330775334,1719772243991,-500.0,0.00015598,2]
[330775335,1719772244000,-501.68919144,0.00015598,2]
[330775336,1719772244011,-500.0,0.00015598,2]
[330775337,1719772244021,-500.0,0.00015598,2]
[330775338,1719772244032,-500.0,0.00015599,2]
[330775339,1719772244041,-5544.95,0.00015599,2]
[330775340,1719772244051,-5350.38,0.00015599,2]
[330775341,1719772244060,-2732.27,0.00015599,2]
[330775342,1719772244070,-2481.25,0.00015599,2]
[330775343,1719772244080,-528.39,0.00015599,2]
[330775344,1719772244089,-536.6,0.00015599,2]
[330775345,1719772244099,-1428.55,0.00015599,2]
[330775346,1719772244109,-2416.3,0.00015599,2]
[330775347,1719772244120,-753.61,0.00015599,2]
[330775348,1719772244130,-2309.01,0.00015599,2]
[330775349,1719772244141,-2337.4,0.00015599,2]
[330775350,1719772244150,-7558.48,0.00015599,2]
[330775351,1719772244160,-500.0,0.00015599,2]
[330775352,1719772244171,-19741.7,0.00015599,2]
[330775353,1719772244180,-2738.5,0.00015599,2]
[330775354,1719772244190,-500.0,0.00015599,2]
[330775355,1719772244203,-641.41,0.00015599,2]
[330775356,1719772244216,-4866.33,0.00015599,2]
[330775357,1719772244226,-849.29,0.00015599,2]
[330775358,1719772244236,-2027.6,0.00015599,2]
[330775359,1719772244245,-500.0,0.00015599,2]
[330775360,1719772244254,-551.65,0.00015599,2]
[330775361,1719772244264,-500.0,0.00015599,2]
[330775362,1719772244274,-2080.65,0.000156,2]
[330775363,1719772244284,-500.0,0.000156,2]
[330775364,1719772244298,-500.0,0.000156,2]
[330775365,1719772244308,-500.0,0.000156,2]
[330775366,1719772244317,-500.0,0.000156,2]
[330775367,1719772244327,-500.0,0.000156,2]
[330775368,1719772244336,-500.0,0.000156,2]
[330775369,1719772244345,-2511.37,0.000156,2]
[330775370,1719772244354,-500.0,0.000156,2]
[330775371,1719772244363,-500.0,0.000156,2]
[330775372,1719772244373,-559.8,0.000156,2]
[330775373,1719772244382,-2324.22,0.000156,2]
[330775374,1719772244391,-2847.63,0.000156,2]
[330775375,1719772244401,-690.64,0.000156,2]
[330775376,1719772244411,-500.0,0.000156,2]
[330775377,1719772244421,-506.8484284,0.000156,2]
[330775378,1719772244430,-951.73,0.000156,2]
[330775379,1719772244440,-1705.92,0.000156,2]
[330775380,1719772244449,-641.74,0.000156,2]
[330775381,1719772244459,-500.0,0.000156,2]
[330775382,1719772244469,-500.0,0.000156,2]
[330775383,1719772244480,-500.0,0.000156,2]
[330775384,1719772244490,-1458.56,0.000156,2]
[330775385,1719772244499,-500.0,0.000156,2]
[330775386,1719772244508,-500.0,0.000156,2]
[330775387,1719772244518,-751.46,0.000156,2]
[330775388,1719772244528,-507.25,0.000156,2]
[330775389,1719772244538,-1003.06,0.000156,2]
[330775390,1719772244548,-501.72,0.000156,2]
[330775391,1719772244558,-807.07,0.000156,2]
[330775392,1719772244567,-500.0,0.000156,2]
[330775393,1719772244576,-685.07,0.000156,2]
[330775394,1719772244586,-500.0,0.000156,2]
[330775395,1719772244665,-500.0,0.000156,2]
[330775396,1719772244680,-18930.96,0.000156,2]
[330775397,1719772244689,-504.70711968,0.000156,2]
[330775398,1719772244700,-500.0,0.000156,2]
[330775399,1719772244710,-500.0,0.000156,2]
[330775400,1719772244720,-500.0,0.000156,2]
[330775401,1719772244732,-500.0,0.000156,2]
[330775402,1719772244741,-500.0,0.000156,2]
[330775403,1719772244750,-500.0,0.000156,2]
[330775404,1719772244760,-500.0,0.000156,2]
[330775405,1719772244769,-1189.13,0.000156,2]
[330775406,1719772244778,-813.63,0.000156,2]
[330775407,1719772244787,-2587.38,0.000156,2]
[330775408,1719772244796,-874.97,0.000156,2]
[330775409,1719772244806,-12512.92,0.000156,2]
[330775410,1719772244816,-4111.78,0.000156,2]
[330775411,1719772244826,-1718.52,0.000156,2]
[330775412,1719772244836,-500.0,0.000156,2]
[330775413,1719772244846,-500.0,0.000156,2]
[330775414,1719772244856,-770.61,0.000156,2]
[330775415,1719772244866,-500.0,0.000156,2]
[330775416,1719772244876,-500.0,0.000156,2]
[330775417,1719772244885,-7980.66,0.000156,2]
[330775418,1719772244894,-500.0,0.000156,2]
[330775419,1719772244903,-858.99,0.000156,2]
[330775420,1719772244913,-500.0,0.000156,2]
[330775421,1719772244923,-500.0,0.000156,2]
[330775422,1719772244933,-500.0,0.000156,2]
[330775423,1719772244942,-1599.27,0.000156,2]
[330775424,1719772244953,-2627.71,0.000156,2]
[330775425,1719772244962,-1234.46,0.000156,2]
[330775426,1719772244972,-1090.06,0.000156,2]
[330775427,1719772244982,-1908.45,0.000156,2]
[330775428,1719772244992,-1027.12,0.000156,2]
[330775429,1719772245001,-502.61,0.000156,2]
[330775430,1719772245011,-889.06,0.000156,2]
[330775431,1719772245021,-500.0,0.000156,2]
[330775432,1719772245031,-500.0,0.000156,2]
[330775433,1719772245040,-602.44,0.000156,2]
[330775434,1719772245050,-1996.98,0.000156,2]
[330775435,1719772245059,-500.0,0.000156,2]
[330775436,1719772245069,-623.07,0.000156,2]
[330775437,1719772245078,-623.07,0.000156,2]
[330775438,1719772245088,-500.0,0.000156,2]
[330775439,1719772245098,-528.45,0.000156,2]
[330775440,1719772245109,-500.0,0.000156,2]
[330775441,1719772245118,-500.0,0.00015601,2]
[330775442,1719772245128,-500.0,0.00015601,2]
[330775443,1719772245140,-500.0,0.00015601,2]
[330775444,1719772245149,-500.0,0.00015601,2]
[330775445,1719772245158,-500.0,0.00015601,2]
[330775446,1719772245168,-500.0,0.00015601,2]
[330775447,1719772245178,-500.0,0.00015601,2]
[330775448,1719772245188,-540.5,0.00015601,2]
[330775449,1719772245197,-500.0,0.00015601,2]
[330775450,1719772245207,-500.0,0.00015601,2]
[330775451,1719772245220,-500.0,0.00015601,2]
[330775452,1719772245231,-500.0,0.00015601,2]
[330775453,1719772245240,-500.0,0.00015601,2]
[330775454,1719772245254,-500.0,0.00015601,2]
[330775455,1719772245265,-500.0,0.00015601,2]
[330775456,1719772245274,-500.0,0.00015601,2]
[330775457,1719772245283,-860.52,0.00015601,2]
[330775458,1719772245296,-500.0,0.00015601,2]
[330775459,1719772245306,-500.0,0.00015601,2]
[330775460,1719772245316,-550.43610066,0.00015601,2]
[330775461,1719772245325,-500.0,0.00015601,2]
[330775462,1719772245335,-500.0,0.00015601,2]
[330775463,1719772245345,-500.0,0.00015601,2]
[330775464,1719772245354,-1035.07,0.00015601,2]
[330775465,1719772245364,-500.0,0.00015601,2]
[330775466,1719772245373,-500.0,0.00015601,2]
[330775467,1719772245382,-500.0,0.00015601,2]
[330775468,1719772245392,-500.0,0.00015601,2]
[330775469,1719772245401,-604.08,0.00015601,2]
[330775470,1719772245410,-500.0,0.00015601,2]
[330775471,1719772245417,-500.0,0.00015601,2]
[330775472,1719772245426,-500.0,0.00015601,2]
[330775473,1719772245434,-743.4,0.00015601,2]
[330775474,1719772245442,-579.21,0.00015601,2]
[330775475,1719772245451,-500.0,0.00015601,2]
[330775476,1719772245460,-638.68725167,0.00015601,2]
[330775477,1719772245469,-500.0,0.00015601,2]
[330775478,1719772245481,-500.0,0.00015601,2]
[330775479,1719772245491,-500.0,0.00015601,2]
[330775480,1719772245500,-500.0,0.00015601,2]
[330775481,1719772245509,-500.0,0.00015601,2]
[330775482,1719772245518,-355.64582305,0.00015601,2]
[330775483,1719772245527,-521.16828657,0.00015601,2]
[330775484,1719772245535,-501.28598276,0.00015601,2]
[330775485,1719772245544,-500.0,0.00015601,2]
[330775486,1719772245554,-500.0,0.00015601,2]
[330775487,1719772245563,-598.81,0.00015601,2]
[330775488,1719772245572,-500.0,0.00015601,2]
[330775489,1719772245582,-500.0,0.00015601,2]
[330775490,1719772245592,-500.0,0.00015601,2]
[330775491,1719772245601,-500.0,0.00015601,2]
[330775492,1719772245611,-508.18186603,0.00015601,2]
[330775493,1719772245621,-500.0,0.00015601,2]
[330775494,1719772245631,-458.17157643,0.00015601,2]
[330775495,1719772245641,-504.34795031,0.00015601,2]
[330775496,1719772245650,-500.0,0.00015601,2]
[330775497,1719772245660,-500.0,0.00015601,2]
[330775498,1719772245669,-500.0,0.00015601,2]
[330775499,1719772245679,-504.59801319,0.00015601,2]
[330775500,1719772245688,-1396.21307889,0.00015601,2]
[330775501,1719772246026,-202.09692111,0.00015601,2]
[330775502,1719772246037,-507.2552439,0.00015601,2]
[330775503,1719772246046,-500.0,0.00015601,2]
[330775504,1719772246056,-620.54,0.00015601,2]
[330775505,1719772246065,-500.0,0.00015601,2]
[330775506,1719772246075,-500.0,0.00015601,2]
[330775507,1719772246084,-500.0,0.00015601,2]
[330775508,1719772246094,-500.0,0.00015601,2]
[330775509,1719772246104,-811.09,0.00015601,2]
[330775510,1719772246116,-519.8,0.00015601,2]
[330775511,1719772246138,-500.0,0.00015601,2]
[330775512,1719772246158,-595.6,0.00015601,2]
[330775514,1719772246177,-500.0,0.00015601,2]
[330775517,1719772246198,-500.0,0.00015601,2]
[330775518,1719772246224,-500.0,0.00015601,2]
[330775519,1719772246244,-500.0,0.00015601,2]
[330775521,1719772246260,-531.63,0.00015601,2]
[330775524,1719772246277,-500.0,0.00015601,2]
[330775527,1719772246297,-533.26,0.00015601,2]
[330775528,1719772246317,-500.0,0.00015601,2]
[330775529,1719772246331,-500.0,0.00015601,2]
[330775530,1719772246348,-500.0,0.00015601,2]
[330775531,1719772246364,-501.62237539,0.00015601,2]
[330775532,1719772246381,-643.21,0.00015601,2]
[330775533,1719772246394,-500.0,0.00015601,2]
[330775534,1719772246411,-553.31548446,0.00015601,2]
[330775536,1719772246426,-500.0,0.00015601,2]
[330775539,1719772246441,-1125.02,0.00015601,2]
[330775540,1719772246456,-500.0,0.00015601,2]
[330775541,1719772246470,-707.73,0.00015601,2]
[330775542,1719772246486,-500.0,0.00015601,2]
[330775543,1719772246501,-500.0,0.00015601,2]
[330775544,1719772246516,-502.8891917,0.00015601,2]
[330775545,1719772246531,-500.0,0.00015601,2]
[330775546,1719772246546,-500.0,0.00015601,2]
[330775547,1719772246561,-500.0,0.00015601,2]
[330775549,1719772246576,-212.45496364,0.00015601,2]
[330775551,1719772246591,-500.0,0.00015601,2]
[330775553,1719772246607,-500.0,0.00015601,2]
[330775555,1719772246622,-506.16142429,0.00015601,2]
[330775556,1719772246637,-500.0,0.00015601,2]
[330775557,1719772246654,-500.0,0.00015601,2]
[330775558,1719772246668,-500.0,0.00015601,2]
[330775559,1719772246683,-500.0,0.00015601,2]
[330775560,1719772246698,-151.0,0.00015601,2]
[330775561,1719772246714,-500.0,0.00015601,2]
[330775562,1719772246729,-428.15097289,0.00015601,2]
[330775563,1719772246745,-927.81,0.00015601,2]
[330775564,1719772246760,-500.0,0.00015601,2]
[330775565,1719772246775,-500.0,0.00015601,2]
[330775566,1719772246790,-500.0,0.00015601,2]
[330775567,1719772246806,-613.15,0.00015601,2]
[330775568,1719772246821,-500.0,0.00015601,2]
[330775569,1719772246831,-500.0,0.00015601,2]
[330775570,1719772246840,-500.0,0.00015601,2]
[330775571,1719772246850,-151.0,0.00015601,2]
[330775572,1719772246860,-560.54,0.00015601,2]
[330775573,1719772246869,-151.0,0.00015601,2]
[330775574,1719772246879,-507.85,0.00015601,2]
[330775575,1719772246888,-151.0,0.00015601,2]
[330775576,1719772246898,-151.0,0.00015601,2]
[330775577,1719772246907,-500.0,0.00015601,2]
[330775578,1719772246917,-500.0,0.00015601,2]
[330775579,1719772246926,-500.0,0.00015601,2]
[330775580,1719772247112,-12435.09,0.00015601,2]
[330775581,1719772247136,-151.0,0.00015601,2]
[330775582,1719772247147,-1138.64,0.00015601,2]
[330775583,1719772247157,-151.0,0.00015601,2]
[330775584,1719772247166,-500.0,0.00015601,2]
[330775585,1719772247176,-500.0,0.00015601,2]
[330775586,1719772247186,-500.0,0.00015601,2]
[330775587,1719772247195,-500.0,0.00015601,2]
[330775588,1719772247203,-500.0,0.00015601,2]
[330775589,1719772247220,-500.0,0.00015601,2]
[330775590,1719772247229,-1021.84,0.00015601,2]
[330775591,1719772247239,-500.0,0.00015601,2]
[330775592,1719772247248,-151.0,0.00015601,2]
[330775593,1719772247259,-500.0,0.00015601,2]
[330775594,1719772247269,-500.0,0.00015601,2]
[330775595,1719772247279,-500.0,0.00015601,2]
[330775596,1719772247289,-623.07,0.00015601,2]
[330775597,1719772247299,-500.0,0.00015601,2]
[330775598,1719772247308,-623.07,0.00015601,2]
[330775599,1719772247318,-623.07,0.00015601,2]
[330775600,1719772247327,-151.0,0.00015601,2]
[330775601,1719772247336,-2494.57,0.00015601,2]
[330775602,1719772247347,-500.0,0.00015601,2]
[330775603,1719772247357,-500.0,0.00015601,2]
[330775604,1719772247366,-563.91,0.00015601,2]
[330775605,1719772247376,-500.0,0.00015601,2]
[330775606,1719772247386,-500.0,0.00015602,2]
[330775607,1719772247395,-500.0,0.00015602,2]
[330775608,1719772247406,-500.0,0.00015602,2]
[330775609,1719772247415,-1059.32,0.00015602,2]
[330775610,1719772247425,-944.75,0.00015602,2]
[330775611,1719772247434,-500.0,0.00015602,2]
[330775612,1719772247444,-500.0,0.00015602,2]
[330775613,1719772247454,-500.0,0.00015602,2]
[330775614,1719772247463,-504.49773037,0.00015602,2]
[330775615,1719772247473,-714.65,0.00015602,2]
[330775616,1719772247484,-500.0,0.00015602,2]
[330775617,1719772247494,-2075.53,0.00015602,2]
[330775618,1719772247504,-500.0,0.00015602,2]
[330775619,1719772247515,-500.0,0.00015602,2]
[330775620,1719772247524,-500.0,0.00015602,2]
[330775621,1719772247534,-500.0,0.00015602,2]
[330775622,1719772247543,-168.276959,0.00015602,2]
[330775623,1719772247553,-1395.39,0.00015602,2]
[330775624,1719772247563,-500.0,0.00015602,2]
[330775625,1719772247572,-791.79,0.00015602,2]
[330775626,1719772247582,-151.0,0.00015602,2]
[330775627,1719772247591,-1544.06,0.00015602,2]
[330775628,1719772247600,-141.73138412,0.00015602,2]
[330775629,1719772247636,-21.01443688,0.00015602,2]
[330775630,1719772247646,-449.71328625,0.00015602,2]
[330775631,1719772248306,-500.0,0.0001505,2]
[330775632,1719772248316,-500.0,0.0001505,2]
[330775633,1719772248326,-823.74,0.00015051,2]
[330775634,1719772248335,-823.74,0.00015599,2]
[330775635,1719772248345,-50.28671375,0.00015602,2]
[330775637,1719772248354,-162.745821,0.00015602,2]
[330775638,1719772248363,-675.84,0.00015602,2]
[330775639,1719772248373,-500.0,0.00015602,2]
[330775641,1719772248383,-311.019855,0.00015602,2]
[330775643,1719772248393,-658.44,0.00015602,2]
[330775645,1719772248402,-311.019855,0.00015602,2]
[330775647,1719772248411,-1842.58,0.00015602,2]
[330775649,1719772248420,-1085.74,0.00015602,2]
[330775650,1719772248429,-151.0,0.00015602,2]
[330775652,1719772248439,-151.0,0.00015602,2]
[330775653,1719772248449,-500.0,0.00015602,2]
[330775654,1719772248458,-500.0,0.00015602,2]
[330775655,1719772248467,-500.0,0.00015602,2]
[330775657,1719772248476,-500.0,0.00015602,2]
[330775658,1719772248489,-963.35,0.00015602,2]
[330775660,1719772248499,-500.0,0.00015602,2]
[330775662,1719772248510,-1239.46,0.00015602,2]
[330775663,1719772248521,-500.0,0.00015602,2]
[330775664,1719772248531,-961.86,0.00015602,2]
[330775665,1719772248540,-1562.21,0.00015602,2]
[330775666,1719772248550,-1017.13716015,0.00015602,2]
[330775667,1719772248905,-500.0,0.0001505,2]
[330775668,1719772248915,-666.88283985,0.00015602,2]
[330775669,1719772248925,-500.0,0.00015602,2]
[330775670,1719772248934,-500.0,0.00015602,2]
[330775671,1719772248945,-500.0,0.00015602,2]
[330775672,1719772248954,-500.0,0.00015602,2]
[330775673,1719772248965,-500.0,0.00015602,2]
[330775674,1719772248975,-623.07,0.00015603,2]
[330775675,1719772248986,-500.0,0.00015603,2]
[330775676,1719772248995,-623.07,0.00015604,2]
[330775677,1719772249005,-502.24,0.00015605,2]
[330775678,1719772249015,-500.0,0.00015605,2]
[330775679,1719772249024,-500.0,0.00015605,2]
[330775680,1719772249034,-500.0,0.00015605,2]
[330775681,1719772249044,-500.0,0.00015605,2]
[330775682,1719772249054,-503.24719233,0.00015605,2]
[330775683,1719772249064,-500.0,0.00015605,2]
[330775684,1719772249074,-500.0,0.00015605,2]
[330775685,1719772249084,-503.24659044,0.00015605,2]
[330775686,1719772249093,-500.0,0.00015605,2]
[330775687,1719772249103,-500.0,0.00015605,2]
[330775688,1719772249113,-500.0,0.00015605,2]
[330775689,1719772249123,-500.0,0.00015605,2]
[330775690,1719772249133,-500.0,0.00015605,2]
[330775691,1719772249143,-500.95058634,0.00015605,2]
[330775692,1719772249153,-501.34266235,0.00015605,2]
[330775693,1719772249163,-500.0,0.00015605,2]
[330775694,1719772249174,-500.0,0.00015605,2]
[330775695,1719772249184,-443.09524509,0.00015605,2]
[330775696,1719772249194,-500.0,0.00015605,2]
[330775697,1719772249204,-1010.09,0.00015605,2]
[330775698,1719772249219,-500.0,0.00015605,2]
[330775699,1719772249230,-721.6,0.00015605,2]
[330775700,1719772249240,-500.0,0.00015605,2]
[330775701,1719772249249,-500.0,0.00015605,2]
[330775702,1719772249261,-500.0,0.00015605,2]
[330775703,1719772249270,-500.0,0.00015605,2]
[330775704,1719772249280,-690.84,0.00015605,2]
[330775705,1719772249289,-1217.51,0.00015605,2]
[330775706,1719772249300,-500.0,0.00015605,2]
[330775707,1719772249310,-151.0,0.00015605,2]
[330775708,1719772249319,-500.0,0.00015605,2]
[330775709,1719772249328,-151.0,0.00015605,2]
[330775710,1719772249337,-500.0,0.00015605,2]
[330775711,1719772249347,-16985.32,0.00015605,2]
[330775712,1719772249475,-151.0,0.00015605,2]
[330775713,1719772249487,-570.43,0.00015605,2]
[330775714,1719772249496,-151.0,0.00015605,2]
[330775715,1719772249505,-151.0,0.00015605,2]
[330775716,1719772249515,-151.0,0.00015605,2]
[330775717,1719772249525,-151.0,0.00015605,2]
[330775718,1719772249535,-151.0,0.00015605,2]
[330775719,1719772249544,-151.0,0.00015605,2]
[330775720,1719772249554,-615.34,0.00015605,2]
[330775721,1719772249563,-151.0,0.00015605,2]
[330775722,1719772249573,-151.0,0.00015605,2]
[330775723,1719772249582,-2261.05,0.00015605,2]
[330775724,1719772249592,-151.0,0.00015605,2]
[330775725,1719772249602,-563.05,0.00015605,2]
[330775726,1719772249611,-623.07,0.00015605,2]
[330775727,1719772249621,-5327.5548836,0.00015605,2]
[330775728,1719772249634,-4205.1051164,0.00015605,2]
[330775729,1719772249643,-151.0,0.00015606,2]
[330775730,1719772249652,-151.0,0.00015606,2]
[330775731,1719772249662,-1821.42975097,0.00015606,2]
[330775732,1719772249674,-141.74024903,0.00015606,2]
[330775733,1719772249684,-500.0,0.00015606,2]
[330775734,1719772249693,-1392.49,0.00015606,2]
[330775735,1719772249703,-1434.22,0.00015606,2]
[330775736,1719772249713,-15870.27,0.00015606,2]
[330775737,1719772249722,-500.0,0.00015607,2]
[330775738,1719772249733,-623.07,0.00015608,2]
[330775739,1719772249744,-623.07,0.00015608,2]
[330775740,1719772249753,-623.07,0.00015608,2]
[330775741,1719772249763,-623.07,0.00015608,2]
[330775742,1719772249772,-623.3,0.00015608,2]
[330775743,1719772249782,-151.0,0.00015609,2]
[330775744,1719772249791,-150.0,0.00015812,2]
[330775745,1719772249800,-877.0,0.00015844,2]
[330775746,1719772249810,-306.0,0.000159,2]
[330775747,1719772249819,-490.76095483,0.00015995,2]
[330775748,1719772249829,-1000.0,0.00016,16]
[330775749,1719772249838,-5286.34479944,0.00016118,2]
[330775750,1719772249848,-500.0,0.00016146,2]
[330775751,1719772249857,-500.0,0.00016146,2]
[330775752,1719772249866,-500.0,0.00016147,2]
[330775753,1719772249876,-5544.95,0.00016147,2]
[330775754,1719772249885,-5057.01954561,0.00016147,2]
[330775755,1719772249897,-293.36045439,0.00016147,2]
[330775756,1719772249906,-2732.27,0.00016147,2]
[330775757,1719772249915,-2481.25,0.00016147,2]
[330775758,1719772249925,-528.39,0.00016147,2]
[330775759,1719772249935,-536.6,0.00016147,2]
[330775760,1719772249944,-1428.55,0.00016147,2]
[330775761,1719772249953,-2416.3,0.00016147,2]
[330775762,1719772249963,-753.61,0.00016147,2]
[330775763,1719772249972,-2309.01,0.00016147,2]
[330775764,1719772249981,-2337.4,0.00016147,2]
[330775765,1719772249991,-4776.51466717,0.00016147,2]
[330775770,1719772456251,5145.5031983,0.00014998,2]
[330775782,1719772591882,328.18464949,0.0001495,2]
[330775784,1719772600093,2977.57361052,0.00014999,2]
[330775789,1719772608250,2887.8782338,0.00014999,2]
[330775792,1719772625674,401.7459215,0.00014999,2]
[330775793,1719772628632,13638.13458652,0.00014997,2]
[330775794,1719772630720,1914.55138167,0.00014999,2]
[330775795,1719772631864,3922.9174901,0.00014999,2]
[330775796,1719772635963,661.12832609,0.00014999,2]
[330775798,1719772640441,10564.8320491,0.00014998,2]
[330775799,1719772647022,1160.46799191,0.00014999,2]
[330775800,1719772659133,531.11088939,0.00014999,2]
[330775801,1719772671296,1487.60034683,0.00014999,2]
[330775802,1719772674189,2129.83378857,0.00014999,2]
[330775803,1719772681918,286.45866748,0.00014999,2]
[330775804,1719772684550,15000.0,0.00015,2]
[330775805,1719772692318,293.15113812,0.00014999,2]
[330775806,1719772694584,457.83791694,0.00014999,2]
[330775807,1719772709656,155.19258173,0.00014999,2]
[330775808,1719772711159,960.84945622,0.00014999,2]
[330775812,1719772725917,932.82450108,0.00014999,2]
[330775813,1719772734587,208.30283817,0.00014999,2]
[330775814,1719772772150,11126.84075,0.00015,2]
[330775815,1719772808218,1913.49563451,0.00014999,2]
[330775817,1719772842588,457.31863482,0.00014999,2]
[330775818,1719772844240,309.69032901,0.00015,2]
[330775819,1719772846319,292.98920226,0.00014999,2]
[330775820,1719772849915,723.6137849,0.00014999,2]
[330775821,1719772991046,262.5477196,0.00014949,2]
[330775822,1719773097726,14877.44110607,0.00014949,2]
[330775824,1719773246741,10085.08965997,0.00014949,2]
[330775827,1719773294918,207.89305961,0.00014999,2]
[330775828,1719773297062,-262.54771956,0.00015035,2]
[330775829,1719773297218,-300.0,0.00015046,2]
[330775830,1719773297249,-136.24132001,0.00015046,2]
[330775831,1719773297327,-163.75867999,0.00015046,2]
[330775832,1719773297363,-222.70560013,0.00015047,2]
[330775833,1719773297459,-278.98359131,0.00015047,2]
[330775834,1719773297490,-419.80544826,0.00015047,2]
[330775835,1719773321879,-80.19455174,0.00015047,2]
[330775836,1719773321909,-500.0,0.00015047,2]
[330775837,1719773321940,-154.27533501,0.00015047,2]
[330775838,1719773321981,-345.72466499,0.00015047,2]
[330775839,1719773322012,-340.7230568,0.00015047,2]
[330775840,1719773323368,179.41389408,0.00014999,2]
[330775841,1719773323733,239.70269009,0.00014999,2]
[330775842,1719773339719,239.70269009,0.00014999,2]
[330775843,1719773347150,-300.0,0.00015046,2]